fUST/lending_fUST_20241013
["ID","MTS","AMOUNT","RATE_DAILY","PERIOD"]
[340178851,1728775755222,-250.0,0.00035901,2]
[340178852,1728775755244,-3268.43224563,0.00035988,2]
[340178853,1728775768139,-1959.11525891,0.00035988,2]
[340178854,1728775771092,-10847.27486296,0.00035988,2]
[340178855,1728775771114,-250.0,0.00035996,2]
[340178856,1728775771133,-7363.42852469,0.00036,15]
[340178857,1728775771153,-206.17832298,0.0003605,2]
[340178858,1728775771175,-250.0,0.00036091,2]
[340178859,1728775771196,-584.09486093,0.00036095,15]
[340178860,1728775771216,-500.0,0.00036095,15]
[340178861,1728775771236,-500.0,0.00036095,15]
[340178862,1728775771256,-500.0,0.00036095,15]
[340178863,1728775771275,-529.6011987,0.00036095,15]
[340178864,1728775771295,-186.0,0.00036096,2]
[340178865,1728775771316,-305.24414252,0.00036096,14]
[340178866,1728775771336,-500.0,0.000361,5]
[340178867,1728775771355,-170.12258044,0.000361,5]
[340178868,1728775771376,-500.0,0.000361,5]
[340178869,1728775771396,-641.76330199,0.000361,5]
[340178870,1728775771416,-500.0,0.000361,5]
[340178871,1728775771437,-500.96863389,0.000361,5]
[340178872,1728775771457,-500.0,0.00036175,5]
[340178873,1728775771478,-250.0,0.00036186,2]
[340178874,1728775771498,-500.0,0.000362,5]
[340178875,1728775771517,-259.58817976,0.0003624,2]
[340178876,1728775771540,-250.0,0.00036281,2]
[340178877,1728775771562,-250.0,0.00036376,2]
[340178878,1728775771584,-250.0,0.00036471,2]
[340178879,1728775771606,-360.0,0.00036601,2]
[340178880,1728775776485,998.74514486,0.00035896,2]
[340178881,1728775781308,2888.94272146,0.00034879,2]
[340178927,1728775838695,-168.249502,0.0003437,2]
[340178928,1728775838706,-111.05727854,0.00034879,2]
[340178929,1728775838725,-611.09026811,0.0003553,2]
[340178930,1728775838736,-189.80732628,0.0003747,5]
[340178931,1728775838750,-810.19267372,0.0003747,5]
[340178932,1728775838760,-929.92893177,0.0003747,5]
[340178933,1728775838771,-400.0,0.00037499,2]
[340178934,1728775838781,-17845.64409222,0.000375,120]
[340178935,1728775838791,-169.95568874,0.00037999,15]
[340178936,1728775838802,-35000.0,0.00038,2]
[340178937,1728775838812,-203.49609501,0.00038,14]
[340178938,1728775838822,-4201.44418646,0.00038119,2]
[340178939,1728775838833,-255.4640463,0.00038219,2]
[340178940,1728775838843,-892.30577239,0.00038219,2]
[340178941,1728775838854,-250.096,0.00038219,51]
[340178942,1728775838864,-1000.0,0.00038356,2]
[340178943,1728775838874,-1000.0,0.0003863,2]
[340178944,1728775838885,-736.68,0.00038904,2]
[340178945,1728775838896,-2039.32727654,0.00039,2]
[340178946,1728775838907,-186.0,0.00039096,2]
[340178947,1728775838917,-500.0,0.00039425,2]
[340178948,1728775838927,-789.52682743,0.00039473,5]
[340178949,1728775838938,-5000.0,0.000395,50]
[340178950,1728775838950,-343.144508,0.0004,2]
[340178951,1728775838963,-560.0,0.00040103,5]
[340178952,1728775838974,-161.50021741,0.00040795,2]
[340178953,1728775838986,-199.63021317,0.000408,5]
[340178954,1728775838997,-500.0,0.000408,5]
[340178955,1728775839009,-500.0,0.000408,5]
[340178956,1728775839019,-150.0,0.000409,45]
[340178957,1728775839030,-2070.17,0.00041013,42]
[340178958,1728775839041,-192497.64673917,0.00041013,5]
[340178959,1728775839053,-12845.81160343,0.00041013,10]
[340178960,1728775839064,-5498.71572989,0.00041013,5]
[340178961,1728775839074,-22758.84917235,0.00041013,20]
[340178962,1728775839094,-916.8220915,0.00041013,20]
[340178967,1728775840558,-17.51190724,0.00041003,10]
[340178968,1728775840572,-2558.36809276,0.00041003,10]
[340178969,1728775840584,-653558.18895705,0.00041013,20]
[340178977,1728775843486,-186.0,0.00041013,2]
[340178978,1728775843496,-2223.99999999,0.00041013,20]
[340178986,1728776744158,-174.276971,0.00029141,2]
[340178987,1728776744180,-561.439778,0.0002952,2]
[340178988,1728776744203,-250.0,0.0003021,2]
[340178989,1728776744226,-250.0,0.00030293,2]
[340178990,1728776744247,-1325.7469724,0.00030351,2]
[340178991,1728776744271,-250.0,0.00030376,2]
[340178992,1728776744293,-173.052702,0.00030442,2]
[340178993,1728776744316,-250.0,0.00030459,2]
[340178994,1728776744339,-250.0,0.00030541,2]
[340178995,1728776744361,-173.052702,0.00030594,2]
[340178996,1728776744384,-250.0,0.00030624,2]
[340178997,1728776744406,-250.0,0.00030707,2]
[340178998,1728776744431,-250.0,0.0003079,2]
[340178999,1728776744454,-250.0,0.00030873,2]
[340179000,1728776744478,-250.0,0.00030956,2]
[340179001,1728776744501,-250.0,0.00031039,2]
[340179002,1728776744523,-250.0,0.00031121,2]
[340179003,1728776744544,-713.11173828,0.00031141,2]
[340179004,1728776758096,-358.0,0.00031141,2]
[340179005,1728776758120,-286.22290223,0.00031141,2]
[340179006,1728776837151,-273.07882437,0.00025,120]
[340179007,1728776837182,-163.698517,0.00028549,2]
[340179008,1728776837212,-166.666666,0.00028574,2]
[340179009,1728776837240,-3000.0,0.00029068,2]
[340179010,1728776837267,-163.698517,0.00029234,2]
[340179011,1728776837293,-163.698517,0.00029919,2]
[340179012,1728776837322,-166.666666,0.00030521,2]
[340179013,1728776837344,-400.0,0.0003114,2]
[340179014,1728776837479,-400.0,0.0003114,2]
[340179015,1728776837500,-17292.57941954,0.00031141,2]
[340179018,1728776945088,-3492.3385602,0.00029058,2]
[340179019,1728776945109,-398.0747792,0.00029951,2]
[340179020,1728776945134,-400.0,0.00030126,2]
[340179021,1728776945157,-400.0,0.00030126,2]
[340179022,1728776945179,-9473.0438637,0.00030127,2]
[340179023,1728776945199,-8719.53848892,0.00031141,2]
[340179024,1728776945223,-500.0,0.00031142,2]
[340179025,1728776945244,-500.0,0.00031142,2]
[340179026,1728776945266,-250.2044089,0.00031142,2]
[340179027,1728776945286,-500.0,0.00031142,2]
[340179028,1728776945309,-500.0,0.00031142,2]
[340179029,1728776945330,-500.0,0.00031142,2]
[340179030,1728776945351,-500.0,0.00031142,2]
[340179031,1728776945371,-377.72371256,0.00031142,2]
[340179032,1728776945394,-500.0,0.00031142,2]
[340179033,1728776945415,-500.0,0.00031142,2]
[340179034,1728776945437,-500.0,0.00031142,2]
[340179035,1728776945459,-500.0,0.00031142,2]
[340179036,1728776945480,-500.0,0.00031142,2]
[340179037,1728776945501,-500.0,0.00031142,2]
[340179038,1728776945523,-500.0,0.00031142,2]
[340179039,1728776945544,-205.61866472,0.00031142,2]
[340179040,1728776945566,-580.81153835,0.00031142,2]
[340179041,1728776945587,-500.0,0.00031142,2]
[340179042,1728776945613,-500.0,0.00031142,2]
[340179043,1728776945640,-500.0,0.00031142,2]
[340179044,1728776945665,-500.0,0.00031142,2]
[340179045,1728776945686,-500.0,0.00031142,2]
[340179046,1728776945712,-500.0,0.00031142,2]
[340179047,1728776945736,-500.0,0.00031142,2]
[340179048,1728776945759,-500.0,0.00031142,2]
[340179049,1728776945782,-500.0,0.00031142,2]
[340179050,1728776945804,-500.0,0.00031142,2]
[340179051,1728776945827,-500.0,0.00031142,2]
[340179052,1728776945850,-500.0,0.00031142,2]
[340179053,1728776945874,-500.0,0.00031142,2]
[340179054,1728776945900,-500.0,0.00031142,2]
[340179055,1728776945923,-500.0,0.00031142,2]
[340179056,1728776945945,-500.0,0.00031142,2]
[340179057,1728776945968,-499.99999999,0.00031142,2]
[340179058,1728776945992,-250.0,0.00031204,2]
[340179059,1728776946015,-250.0,0.00031287,2]
[340179060,1728776946036,-250.0,0.0003137,2]
[340179061,1728776946165,-250.0,0.00031453,2]
[340179062,1728776946188,-250.0,0.00031536,2]
[340179063,1728776946210,-250.0,0.00031618,2]
[340179064,1728776946233,-250.0,0.00031701,2]
[340179065,1728776946254,-250.0,0.00031784,2]
[340179066,1728776946275,-560.0,0.00032465,2]
[340179067,1728776946297,-166.666666,0.00032469,2]
[340179068,1728776946320,-210.434192,0.00032495,2]
[340179069,1728776946341,-210.434192,0.00032503,2]
[340179070,1728776946362,-210.434192,0.00032512,2]
[340179071,1728776946382,-210.434192,0.0003252,2]
[340179072,1728776946404,-210.434192,0.00032529,2]
[340179073,1728776946513,-210.434192,0.00032537,2]
[340179074,1728776946538,-210.434192,0.00032546,2]
[340179075,1728776946560,-210.434192,0.00032555,2]
[340179076,1728776946582,-210.434192,0.00032563,2]
[340179077,1728776946604,-210.434192,0.00032572,2]
[340179078,1728776946628,-502.87317867,0.00032573,5]
[340179079,1728776946651,-505.63140856,0.00032573,5]
[340179080,1728776946673,-500.0,0.00032573,5]
[340179081,1728776946695,-500.0,0.00032573,5]
[340179082,1728776946715,-500.0,0.00032573,5]
[340179083,1728776946736,-500.0,0.00032573,5]
[340179084,1728776946757,-500.0,0.00032573,5]
[340179085,1728776946777,-199.63021317,0.00032573,5]
[340179086,1728776946798,-500.0,0.00032573,5]
[340179087,1728776946828,-500.0,0.00032573,5]
[340179088,1728776946855,-210.434192,0.0003258,2]
[340179089,1728776946878,-210.434192,0.00032589,2]
[340179090,1728776946902,-210.434192,0.00032597,2]
[340179091,1728776946925,-210.434192,0.00032606,2]
[340179092,1728776946948,-210.434192,0.00032614,2]
[340179093,1728776946970,-210.434192,0.00032623,2]
[340179094,1728776946994,-210.434192,0.00032632,2]
[340179095,1728776947016,-1047.76581046,0.0003264,2]
[340179096,1728776947038,-210.434192,0.0003264,2]
[340179097,1728776947061,-210.434192,0.00032649,2]
[340179098,1728776947083,-210.434192,0.00032657,2]
[340179099,1728776947105,-4276.05839738,0.0003274,2]
[340179100,1728776947126,-500.0,0.00032773,5]
[340179101,1728776947148,-577.39018818,0.00032773,5]
[340179102,1728776947168,-500.0,0.00032773,5]
[340179103,1728776947188,-500.0,0.00032773,5]
[340179104,1728776947209,-156.0,0.0003284,2]
[340179105,1728776947231,-296.89944652,0.00032877,2]
[340179106,1728776947253,-500.0,0.00032918,5]
[340179107,1728776947277,-560.0,0.00033139,2]
[340179108,1728776947309,15615.9649927,0.00028771,2]
[340179109,1728776947330,9284.0350073,0.00028771,2]
[340179110,1728776947623,250.0,0.00031185,2]
[340179111,1728776948068,250.0,0.0003127,2]
[340179112,1728776948317,250.0,0.00031356,2]
[340179113,1728776957300,-250.0,0.00031442,2]
[340179114,1728776957324,-250.0,0.00031527,2]
[340179115,1728776957347,-250.0,0.00031613,2]
[340179116,1728776957372,-250.0,0.00031698,2]
[340179117,1728776957395,-250.0,0.00031784,2]
[340179118,1728776957416,-250.0,0.00031869,2]
[340179119,1728776957438,-250.0,0.00031955,2]
[340179120,1728776957461,-250.0,0.0003204,2]
[340179121,1728776957481,-250.0,0.00032126,2]
[340179122,1728776957503,-250.0,0.00032211,2]
[340179123,1728776957525,-250.0,0.00032297,2]
[340179124,1728776957545,-250.0,0.00032382,2]
[340179125,1728776957572,-250.0,0.00032468,2]
[340179126,1728776957592,-250.0,0.00032553,2]
[340179127,1728776957614,-250.0,0.00032639,2]
[340179128,1728776957638,-250.0,0.00032725,2]
[340179129,1728776957660,-250.0,0.0003281,2]
[340179130,1728776957683,-200.077,0.0003363,36]
[340179131,1728776957709,-264.25,0.00033922,3]
[340179132,1728776957730,-792.76,0.00033922,3]
[340179133,1728776957752,-3284.83,0.00033923,10]
[340179134,1728776957773,-280.35466735,0.00033931,7]
[340179135,1728776957793,-159.4767058,0.00033931,7]
[340179136,1728776957815,-167.78709512,0.00033931,7]
[340179137,1728776957836,-246.43803094,0.00033931,7]
[340179138,1728776957859,-2557.91386225,0.00033932,5]
[340179139,1728776971247,-10148.53622558,0.00033833,2]
[340179140,1728776971272,-1910.20991442,0.00033923,10]
[340179142,1728777025127,187.32349941,0.00031356,7]
[340179143,1728777030051,280.719889,0.00031182,2]
[340179213,1728777039570,-2418.99,0.00033923,10]
[340179214,1728777039581,-46.57523632,0.00033923,10]
[340179215,1728777039593,-1969.25476368,0.00033923,10]
[340179216,1728777039603,-1679.86,0.00033923,10]
[340179217,1728777039612,-1399.88,0.00033923,10]
[340179218,1728777039622,-400.0,0.00033931,2]
[340179219,1728777039632,-400.0,0.00033931,2]
[340179220,1728777039641,-500.0,0.00033931,7]
[340179221,1728777039651,-397.86794871,0.00033931,7]
[340179222,1728777039660,-500.0,0.00033931,7]
[340179223,1728777039671,-300.62429608,0.00033931,7]
[340179224,1728777039681,-65564.51169075,0.00033932,5]
[340179225,1728777039692,-155708.493231,0.00033932,5]
[340179226,1728777039702,-502.52874428,0.00033942,5]
[340179227,1728777039715,-501.74444936,0.00033942,5]
[340179228,1728777039726,-501.93079448,0.00033942,5]
[340179229,1728777039738,-1000.0,0.00033942,5]
[340179230,1728777039750,-500.94167589,0.00033942,5]
[340179231,1728777039761,-502.58648173,0.00033942,5]
[340179232,1728777039773,-500.0,0.00033973,5]
[340179233,1728777039785,-501.64914619,0.00033973,5]
[340179234,1728777039796,-500.0,0.00033973,5]
[340179235,1728777039808,-500.80472597,0.00033973,5]
[340179236,1728777039818,-585.09095661,0.00033973,5]
[340179237,1728777039830,-500.0,0.00033973,2]
[340179238,1728777039842,-500.0,0.00033973,5]
[340179239,1728777039854,-1000.0,0.00034142,5]
[340179240,1728777039865,-1000.0,0.00034142,5]
[340179241,1728777039880,-1000.0,0.00034142,5]
[340179242,1728777039890,-1000.0,0.00034288,5]
[340179243,1728777039902,-1047.76581044,0.00034318,2]
[340179244,1728777039913,-1111.0,0.00034849,120]
[340179245,1728777039924,-528.5,0.00035292,3]
[340179246,1728777039935,-500.0,0.00035342,5]
[340179247,1728777039947,-161.50021741,0.00035342,2]
[340179248,1728777039957,-1000.0,0.00035342,5]
[340179249,1728777039969,-1047.76581044,0.00035996,2]
[340179250,1728777039980,-2070.17,0.00036,42]
[340179251,1728777039991,-493.90131768,0.00036054,5]
[340179252,1728777040001,-1500.0,0.00036146,5]
[340179253,1728777040011,-643.6673382,0.00036146,5]
[340179254,1728777040020,-500.0,0.00036273,5]
[340179255,1728777040030,-789.52682743,0.00036291,5]
[340179256,1728777040039,-560.0,0.00036422,2]
[340179257,1728777040050,-800.0,0.00036806,120]
[340179258,1728777040059,-1521.93944335,0.00036806,120]
[340179259,1728777040069,-221.01985493,0.00036822,2]
[340179260,1728777040079,-150.112233,0.000371,8]
[340179261,1728777040088,-560.0,0.00037325,2]
[340179262,1728777040100,-1500.0,0.00037346,5]
[340179263,1728777040112,-5000.0,0.000375,40]
[340179264,1728777040122,-68122.425553,0.00037664,5]
[340179265,1728777040132,-155708.493231,0.00037664,5]
[340179266,1728777040143,-500.0,0.00037673,5]
[340179267,1728777040153,-500.0,0.00037673,5]
[340179268,1728777040163,-500.0,0.00037673,5]
[340179269,1728777040172,-500.0,0.00037673,5]
[340179270,1728777040181,-176.86797715,0.00037673,5]
[340179271,1728777040191,-428.17955726,0.00037673,5]
[340179272,1728777040200,-500.0,0.00037673,5]
[340179273,1728777040209,-500.0,0.00037673,5]
[340179275,1728777040222,-500.0,0.00037673,5]
[340179277,1728777040231,-500.0,0.00037673,5]
[340179280,1728777040242,-1047.76581044,0.00037674,2]
[340179281,1728777040251,-150.112233,0.000377,8]
[340179282,1728777040260,-743.82879137,0.0003772,10]
[340179283,1728777040270,-252.63160163,0.0003772,10]
[340179284,1728777040279,-10148.53622555,0.00037971,2]
[340179285,1728777040288,-150.112233,0.000383,6]
[340179286,1728777040297,-1874.76,0.00038356,2]
[340179287,1728777040306,-2000.0,0.00038487,5]
[340179288,1728777040315,-5000.0,0.000385,50]
[340179289,1728777040325,-1874.76,0.0003863,2]
[340179290,1728777040334,-348.24194905,0.00038795,7]
[340179291,1728777040343,-1874.76,0.00038904,2]
[340179292,1728777040353,-150.112233,0.00039,6]
[340179293,1728777040363,-1000.0,0.00039042,5]
[340179294,1728777040373,-1000.0,0.00039042,5]
[340179295,1728777040382,-1000.0,0.00039042,5]
[340179296,1728777040391,-1000.0,0.00039042,5]
[340179297,1728777040400,-1000.0,0.00039042,5]
[340179298,1728777040410,-1000.0,0.00039042,5]
[340179299,1728777040420,-1000.0,0.00039042,5]
[340179300,1728777040429,-1000.0,0.00039042,5]
[340179301,1728777040438,-783.0,0.00039096,5]
[340179302,1728777040448,-800.0,0.00039099,120]
[340179303,1728777040458,-1874.76,0.00039178,2]
[340179304,1728777040467,-1000.0,0.00039341,120]
[340179305,1728777040479,-1000.0,0.00039341,2]
[340179306,1728777040488,-1000.0,0.00039341,2]
[340179307,1728777040498,-1000.0,0.00039341,2]
[340179308,1728777040508,-1000.0,0.00039341,2]
[340179309,1728777040518,-1000.0,0.00039341,2]
[340179310,1728777040527,-650.05099701,0.00039341,2]
[340179311,1728777040536,-1047.76581044,0.00039352,2]
[340179312,1728777040546,-150.0,0.00039373,5]
[340179313,1728777040555,-150.0,0.00039373,5]
[340179314,1728777040566,-150.0,0.00039373,5]
[340179315,1728777040575,-68122.425553,0.0003939,5]
[340179316,1728777040584,-26372.1557309,0.0003939,5]
[340179318,1728777040688,-53035.59217728,0.0003939,5]
[340179319,1728777040765,-76300.74532282,0.0003939,5]
[340179320,1728777040774,-9364.96,0.000394,30]
[340179321,1728777040784,-1874.76,0.00039452,2]
[340179322,1728777040794,-5000.0,0.000395,60]
[340179323,1728777040803,-150.112233,0.000396,8]
[340179324,1728777040813,-1000.0,0.00039615,120]
[340179325,1728777040822,-1117.96754104,0.00039687,5]
[340179326,1728777040832,-1874.76,0.00039726,2]
[340179327,1728777040849,-500.0,0.00039726,15]
[340179328,1728777040861,-500.0,0.00039726,15]
[340179329,1728777040871,-500.0,0.00039726,15]
[340179330,1728777040882,-500.0,0.00039726,15]
[340179331,1728777040892,-500.0,0.00039726,15]
[340179332,1728777040902,-266.41078825,0.00039726,15]
[340179333,1728777040911,-500.0,0.00039726,15]
[340179334,1728777040921,-500.0,0.00039726,15]
[340179335,1728777040931,-500.0,0.00039726,15]
[340179336,1728777040940,-500.0,0.00039726,15]
[340179337,1728777040950,-500.0,0.00039726,15]
[340179338,1728777040959,-500.0,0.00039726,15]
[340179339,1728777040969,-500.0,0.00039726,15]
[340179340,1728777040980,-500.0,0.00039726,15]
[340179341,1728777040989,-500.0,0.00039726,15]
[340179342,1728777040999,-500.0,0.00039726,15]
[340179343,1728777041009,-500.0,0.00039726,15]
[340179344,1728777041019,-500.0,0.00039726,15]
[340179345,1728777041028,-500.0,0.00039726,15]
[340179346,1728777041038,-1000.0,0.00039889,120]
[340179347,1728777041048,-250.0,0.00039921,5]
[340179348,1728777041058,-250.0,0.00039921,5]
[340179349,1728777041067,-1000.0,0.0004,30]
[340179350,1728777041078,-1000.0,0.0004,30]
[340179351,1728777041087,-1000.0,0.0004,30]
[340179352,1728777041097,-1000.0,0.0004,30]
[340179353,1728777041107,-1000.0,0.0004,30]
[340179354,1728777041116,-1000.0,0.0004,30]
[340179355,1728777041126,-242.0,0.0004,30]
[340179356,1728777041135,-1000.0,0.0004,30]
[340179357,1728777041145,-1000.0,0.0004,30]
[340179358,1728777041155,-1000.0,0.0004,30]
[340179359,1728777041164,-1000.0,0.0004,30]
[340179360,1728777041174,-743.0,0.0004,30]
[340179361,1728777041183,-343.144509,0.0004,2]
[340179362,1728777041192,-1874.76,0.0004,2]
[340179363,1728777041202,-68122.425553,0.00040141,6]
[340179364,1728777041211,-155708.493231,0.00040141,6]
[340179365,1728777041220,-151.0,0.00040141,14]
[340179366,1728777041230,-151.0,0.00040141,14]
[340179367,1728777041240,-152.395837,0.00040141,14]
[340179368,1728777041249,-151.0,0.00040141,14]
[340179369,1728777041259,-151.0,0.00040141,14]
[340179370,1728777041268,-1000.0,0.00040163,120]
[340179371,1728777041278,-1874.76,0.00040273,2]
[340179372,1728777041291,-161.60378812,0.00040347,30]
[340179373,1728777041300,-1000.0,0.00040437,120]
[340179374,1728777041310,-414.91845962,0.00040468,5]
[340179375,1728777041320,-350.0,0.00040468,5]
[340179376,1728777041329,-5000.0,0.000405,70]
[340179377,1728777041338,-1874.76,0.00040547,2]
[340179378,1728777041348,-20812.33299764,0.00040651,51]
[340179379,1728777041358,-1000.0,0.00040711,120]
[340179380,1728777041368,-572.80012675,0.00040767,21]
[340179381,1728777041378,-3415.81424607,0.000408,2]
[340179382,1728777041387,-1874.76,0.00040821,2]
[340179383,1728777041496,-515.37159887,0.0004085,61]
[340179384,1728777041506,-68122.425553,0.0004085,6]
[340179385,1728777041515,-50528.47359369,0.0004086,2]
[340179386,1728777041524,-3000.0,0.000409,45]
[340179387,1728777041534,-3000.0,0.0004091,45]
[340179388,1728777041543,-3000.0,0.0004092,45]
[340179389,1728777041552,-3000.0,0.0004093,45]
[340179390,1728777041561,-3000.0,0.0004094,45]
[340179391,1728777041571,-3000.0,0.0004095,45]
[340179392,1728777041580,-3000.0,0.0004096,45]
[340179393,1728777041589,-3000.0,0.0004097,45]
[340179394,1728777041599,-4749.460883,0.0004098,45]
[340179395,1728777041608,-1000.0,0.00040985,120]
[340179396,1728777041618,-1757.03569561,0.00041,2]
[340179397,1728777041628,-9364.96,0.00041,30]
[340179398,1728777041637,-7712.7867723,0.00041007,26]
[340179399,1728777041647,-151.0,0.00041007,14]
[340179400,1728777041657,-151.0,0.00041007,14]
[340179401,1728777041666,-151.0,0.00041007,14]
[340179402,1728777041676,-151.0,0.00041007,14]
[340179403,1728777041685,-212159.98689904,0.00041007,20]
[340179404,1728777041695,-1868.84668222,0.00041007,2]
[340179405,1728777041708,-294.30033699,0.00041007,3]
[340179406,1728777041717,-558.92035194,0.00041007,2]
[340179407,1728777041728,-394.70909042,0.00041007,2]
[340179408,1728777041737,-229.683291,0.00041012,14]
[340179409,1728777041747,-151.0,0.00041012,14]
[340179410,1728777041756,-151.0,0.00041012,2]
[340179411,1728777041766,-151.0,0.00041012,14]
[340179412,1728777041775,-263.018657,0.00041012,14]
[340179413,1728777041785,-151.0,0.00041012,14]
[340179414,1728777041796,-263.018657,0.00041012,14]
[340179415,1728777041805,-576.906059,0.00041012,2]
[340179416,1728777041814,-576.906059,0.00041012,2]
[340179417,1728777041824,-239.468471,0.00041012,14]
[340179418,1728777041833,-239.468471,0.00041012,14]
[340179419,1728777041842,-1000.0,0.00041013,3]
[340179420,1728777041852,-450.0,0.00041016,5]
[340179421,1728777041862,-1500.0,0.00041046,5]
[340179422,1728777041872,-1500.0,0.00041046,5]
[340179423,1728777041881,-1500.0,0.00041046,5]
[340179424,1728777041891,-1500.0,0.00041046,5]
[340179425,1728777041900,-1500.0,0.00041046,5]
[340179426,1728777041910,-1500.0,0.00041046,5]
[340179427,1728777041918,-1500.0,0.00041046,5]
[340179428,1728777041927,-382.21046586,0.00041046,5]
[340179429,1728777041937,-783.0,0.00041057,30]
[340179430,1728777041946,-150.0,0.00041073,5]
[340179431,1728777041955,-837.51623956,0.00041078,5]
[340179432,1728777041965,-1874.76,0.00041095,2]
[340179433,1728777041976,-180.4850268,0.00041096,2]
[340179434,1728777041985,-289.15597042,0.00041096,31]
[340179435,1728777041995,-996.13,0.000411,30]
[340179436,1728777042005,-1021.02,0.000411,30]
[340179437,1728777042014,-1000.0,0.00041259,120]
[340179438,1728777042023,-1874.76,0.00041369,2]
[340179439,1728777042033,-1000.0,0.00041533,120]
[340179440,1728777042043,-550.0,0.00041564,7]
[340179441,1728777042053,-250.0,0.00041621,10]
[340179442,1728777042062,-1874.76,0.00041643,2]
[340179443,1728777042072,-1000.0,0.00041807,120]
[340179444,1728777042082,-1874.76,0.00041917,2]
[340179445,1728777042091,-1097.0,0.00041966,5]
[340179446,1728777042100,-272.82532284,0.00042,2]
[340179447,1728777042109,-1091.02505739,0.00042081,120]
[340179448,1728777042119,-10148.53622555,0.00042109,28]
[340179449,1728777042128,-650.0,0.00042112,7]
[340179450,1728777042138,-203.1889306,0.00042168,10]
[340179451,1728777042146,-1874.76,0.00042191,2]
[340179452,1728777042156,-153.0,0.00042328,120]
[340179453,1728777042165,-153.0,0.00042328,120]
[340179454,1728777042174,-153.0,0.00042328,120]
[340179455,1728777042182,-153.0,0.00042328,120]
[340179456,1728777042191,-153.0,0.00042328,120]
[340179457,1728777042201,-153.0,0.00042328,120]
[340179458,1728777042210,-153.0,0.00042328,120]
[340179459,1728777042220,-153.0,0.00042328,120]
[340179460,1728777042230,-153.0,0.00042328,120]
[340179461,1728777042239,-153.0,0.00042328,120]
[340179462,1728777042249,-153.0,0.00042328,120]
[340179463,1728777042258,-153.0,0.00042328,120]
[340179464,1728777042267,-153.0,0.00042328,120]
[340179465,1728777042276,-153.0,0.00042328,120]
[340179466,1728777042286,-153.0,0.00042328,120]
[340179467,1728777042295,-153.0,0.00042328,120]
[340179468,1728777042304,-153.0,0.00042328,120]
[340179469,1728777042314,-153.0,0.00042328,120]
[340179470,1728777042323,-153.0,0.00042328,120]
[340179471,1728777042333,-153.0,0.00042328,120]
[340179472,1728777042342,-153.0,0.00042328,120]
[340179473,1728777042351,-153.0,0.00042328,120]
[340179474,1728777042360,-153.0,0.00042328,120]
[340179475,1728777042370,-153.0,0.00042328,120]
[340179476,1728777042379,-153.0,0.00042328,120]
[340179477,1728777042389,-153.0,0.00042328,120]
[340179478,1728777042399,-153.0,0.00042328,120]
[340179479,1728777042408,-153.0,0.00042328,120]
[340179480,1728777042418,-153.0,0.00042328,120]
[340179481,1728777042427,-153.0,0.00042328,120]
[340179482,1728777042437,-153.0,0.00042328,120]
[340179483,1728777042446,-153.0,0.00042328,120]
[340179484,1728777042456,-153.0,0.00042328,120]
[340179485,1728777042466,-153.0,0.00042328,120]
[340179486,1728777042475,-153.0,0.00042328,120]
[340179487,1728777042484,-153.0,0.00042328,120]
[340179488,1728777042494,-153.0,0.00042328,120]
[340179489,1728777042503,-153.0,0.00042328,120]
[340179490,1728777042512,-153.0,0.00042328,120]